bitfinex-derivatives/quotes_BNBF0:USTF0_20260221
["timestamp","ask_amount","ask_price","bid_price","bid_amount"]
[1771686688271,1.17847449,633.18,632.35,1.524]
[1771686688272,1.17847449,633.18,632.4,1.58014546]
[1771686690171,1.17847449,633.18,632.39,1.58014546]
[1771686693580,1.17847449,633.11,632.35,1.524]
[1771686698286,1.17847449,633.12,632.35,1.524]
[1771686698483,1.17847449,633.31,632.53,1.58014546]
[1771686698983,1.17847449,633.32,632.54,1.58014546]
[1771686699286,1.17847449,633.33,632.53,1.58014546]
[1771686700285,1.17847449,633.34,632.53,1.58014546]
[1771686701382,1.17847449,633.34,632.52,1.58014546]
[1771686702182,1.17847449,633.35,632.52,1.58014546]
[1771686703886,1.17847449,633.39,632.56,1.58014546]
[1771686704384,1.17847449,633.4,632.56,1.58014546]
[1771686705287,1.17847449,633.41,632.55,1.58014546]
[1771686705587,1.17847449,633.38,632.52,1.58014546]
[1771686706091,1.17847449,633.37,632.52,1.58014546]
[1771686706290,1.17847449,633.38,632.52,1.58014546]
[1771686706486,1.17847449,633.33,632.47,1.58014546]
[1771686708694,1.17847449,633.33,632.42,1.58014546]
[1771686708897,1.17847449,633.28,632.42,1.58014546]
[1771686709192,1.17847449,633.27,632.42,1.58014546]
[1771686710196,1.17847449,633.27,632.43,1.58014546]
[1771686711193,1.17847449,633.27,632.44,1.418]
[1771686712198,1.17847449,633.26,632.44,1.418]
[1771686712897,1.17847449,633.27,632.44,2.99814546]
[1771686714195,1.56703194,633.38,632.45,1.58014546]
[1771686714196,1.17847449,633.26,632.45,1.58014546]
[1771686732210,1.17847449,633.25,632.45,1.58014546]
[1771686734714,1.17847449,633.24,632.44,2.99814546]
[1771686738013,1.17847449,633.23,632.44,2.99814546]
[1771686738208,1.17847449,633.21,632.44,1.418]
[1771686738414,1.17847449,633.19,632.44,1.418]
[1771686738713,1.17847449,633.17,632.44,1.418]
[1771686740212,1.17847449,633.16,632.44,1.418]
[1771686741416,1.17847449,633.15,632.44,1.418]
[1771686742312,1.17847449,633.14,632.44,1.418]
[1771686742718,2.11381598,633.13,632.44,1.418]
[1771686742917,1.17847449,633.11,632.44,1.418]
[1771686743117,2.11381598,633.11,632.44,1.418]
[1771686743314,2.11381598,633.1,632.44,1.418]
[1771686743612,1.17847449,633.08,632.44,1.418]
[1771686743817,0.93534149,633.07,632.44,1.418]
[1771686744014,0.93534149,633.06,632.44,1.418]
[1771686744315,0.93534149,633.05,632.44,1.418]
[1771686744619,0.93534149,633.04,632.44,1.418]
[1771686744820,0.93534149,633.03,632.44,1.418]
[1771686745020,0.93534149,633.02,632.44,1.418]
[1771686745320,0.93534149,633.01,632.44,1.418]
[1771686745519,0.93534149,633.0,632.44,1.418]
[1771686745821,0.93534149,632.99,632.44,1.418]
[1771686746015,0.93534149,632.98,632.44,1.418]
[1771686746316,0.93534149,632.97,632.44,1.418]
[1771686746520,0.93534149,632.96,632.44,1.418]
[1771686746716,0.93534149,632.95,632.44,1.418]
[1771686747020,0.93534149,632.94,632.44,1.418]
[1771686747215,0.93534149,632.93,632.44,1.418]
[1771686747417,0.93534149,632.92,632.44,1.418]
[1771686747620,0.93534149,632.91,632.44,1.418]
[1771686747818,0.93534149,632.9,632.44,1.418]
[1771686748021,0.93534149,632.89,632.44,1.418]
[1771686748224,1.17847449,633.09,632.44,1.418]
[1771686749022,0.93472608,633.08,632.44,1.418]
[1771686749226,0.93472608,633.07,632.44,1.418]
[1771686749425,0.93472608,633.06,632.44,1.418]
[1771686749625,0.93472608,633.05,632.44,1.418]
[1771686749826,0.93472608,633.04,632.44,1.418]
[1771686750023,0.93472608,633.03,632.44,1.418]
[1771686750222,0.93472608,633.02,632.44,1.418]
[1771686750425,0.93472608,633.01,632.44,1.418]
[1771686750622,0.93472608,633.0,632.44,1.418]
[1771686750926,0.93472608,632.99,632.44,1.418]
[1771686751221,1.17847449,633.16,632.44,1.418]
[1771686751222,1.17847449,633.2,632.44,1.418]
[1771686751426,0.93530472,633.19,632.44,1.418]
[1771686751625,0.93530472,633.18,632.44,1.418]
[1771686751824,0.93530472,633.17,632.44,1.418]
[1771686752021,1.17847449,633.23,632.44,1.418]
[1771686752022,0.93530472,633.16,632.44,1.418]
[1771686752226,0.93530472,633.15,632.44,1.418]
[1771686752425,0.93530472,633.14,632.44,1.418]
[1771686752623,0.93530472,633.13,632.44,1.418]
[1771686752821,0.93530472,633.12,632.44,1.418]
[1771686753022,0.93530472,633.11,632.44,1.418]
[1771686753223,0.93530472,633.1,632.44,1.69292278]
[1771686753426,0.93530472,633.09,632.44,1.69292278]
[1771686753628,0.93530472,633.08,632.44,1.69292278]
[1771686753827,0.93530472,633.07,632.44,1.69292278]
[1771686754127,0.93530472,633.06,632.44,1.69292278]
[1771686754323,0.93530472,633.05,632.44,1.69292278]
[1771686754527,0.93530472,633.04,632.44,1.69292278]
[1771686754724,0.93530472,633.03,632.44,1.69292278]
[1771686754922,1.17847449,633.23,632.44,1.69292278]
[1771686755124,1.17847449,633.23,632.44,0.27492278]
[1771686757327,2.11393457,633.23,632.44,0.27492278]
[1771686757525,0.93546008,633.22,632.44,0.27492278]
[1771686757725,0.93546008,633.21,632.45,1.758]
[1771686757926,0.93546008,633.2,632.45,1.758]
[1771686758126,0.93546008,633.19,632.45,1.758]
[1771686758326,0.93546008,633.18,632.45,1.758]
[1771686758525,0.93546008,633.17,632.45,1.758]
[1771686758828,0.93546008,633.16,632.45,1.758]
[1771686759125,0.93546008,633.15,632.45,1.758]
[1771686759324,0.93546008,633.14,632.45,1.758]
[1771686759527,0.93546008,633.13,632.45,1.758]
[1771686759726,0.93546008,633.12,632.45,1.758]
[1771686759927,0.93546008,633.11,632.45,1.758]
[1771686760130,0.93546008,633.1,632.45,1.758]
[1771686760429,0.93546008,633.09,632.45,1.758]
[1771686760730,0.93546008,633.08,632.45,1.758]
[1771686760929,0.93546008,633.07,632.45,1.758]
[1771686761131,0.93546008,633.06,632.45,1.758]
[1771686761332,0.93546008,633.05,632.45,1.758]
[1771686761528,0.93546008,633.04,632.45,1.758]
[1771686761732,0.93546008,633.03,632.45,1.758]
[1771686761936,1.17847449,633.23,632.45,1.758]
[1771686764537,2.11394362,633.23,632.45,1.758]
[1771686764735,0.93546913,633.22,632.45,1.758]
[1771686764936,0.93546913,633.21,632.45,1.758]
[1771686765133,0.93546913,633.2,632.45,1.758]
[1771686765434,0.93546913,633.19,632.45,1.758]
[1771686765633,0.93546913,633.18,632.45,1.758]
[1771686765932,0.93546913,633.17,632.45,1.758]
[1771686766135,0.93546913,633.16,632.45,1.758]
[1771686766338,0.93546913,633.15,632.45,1.758]
[1771686766639,0.93546913,633.14,632.45,1.758]
[1771686766839,0.93546913,633.13,632.45,1.758]
[1771686767036,0.93546913,633.12,632.45,1.758]
[1771686767237,0.93546913,633.11,632.45,1.758]
[1771686767435,1.17847449,633.23,632.45,1.758]
[1771686767436,0.93546913,633.1,632.45,1.758]
[1771686767638,0.93546913,633.09,632.45,1.758]
[1771686767837,0.93546913,633.08,632.45,1.758]
[1771686768037,0.93546913,633.07,632.45,1.758]
[1771686768341,0.93546913,633.06,632.45,1.758]
[1771686768636,0.93546913,633.05,632.45,1.758]
[1771686768841,0.93546913,633.04,632.45,1.758]
[1771686769041,0.93546913,633.03,632.45,1.758]
[1771686769240,1.17847449,633.24,632.45,1.758]
[1771686769542,0.93555807,633.23,632.45,1.758]
[1771686769739,0.93555807,633.22,632.45,1.758]
[1771686769942,0.93555807,633.21,632.45,1.758]
[1771686770140,0.93555807,633.2,632.45,1.758]
[1771686770338,0.93555807,633.19,632.45,1.758]
[1771686770538,1.17847449,633.25,632.45,1.758]
[1771686770539,0.93555807,633.18,632.45,1.758]
[1771686770744,0.93555807,633.17,632.45,1.758]
[1771686771043,0.93555807,633.16,632.45,1.758]
[1771686771241,0.93555807,633.15,632.45,1.758]
[1771686771440,0.93555807,633.14,632.45,1.758]
[1771686771641,0.93555807,633.13,632.45,1.758]
[1771686771843,0.93555807,633.12,632.45,1.758]
[1771686772145,0.93555807,633.11,632.45,1.758]
[1771686772344,0.93555807,633.1,632.45,1.758]
[1771686772545,0.93555807,633.09,632.45,1.758]
[1771686772743,1.17847449,633.28,632.45,1.758]
[1771686773044,1.17847449,633.29,632.51,1.57613724]
[1771686776243,1.17847449,633.29,632.5,1.57613724]
[1771686778448,1.17847449,633.39,632.6,1.57613724]
[1771686779447,1.17847449,633.4,632.59,1.57613724]
[1771686780544,1.17847449,633.44,632.64,1.57613724]
[1771686780845,1.17847449,633.57,632.76,1.57613724]
[1771686781045,1.17847449,633.62,632.77,1.57613724]
[1771686781244,1.17847449,633.69,632.83,1.57613724]
[1771686782346,1.17847449,633.72,632.81,1.57613724]
[1771686783352,1.17847449,633.74,632.78,1.57613724]
[1771686784251,1.17847449,633.75,632.76,1.57613724]
[1771686785254,1.17847449,633.76,632.74,1.57613724]
[1771686786150,1.17847449,633.77,632.73,1.57613724]
[1771686787249,1.17847449,633.78,632.72,1.57613724]
[1771686787851,1.17847449,633.72,632.66,1.57613724]
[1771686788050,1.17847449,633.7,632.63,1.57613724]
[1771686790158,1.17847449,633.7,632.62,1.57613724]
[1771686793162,1.17847449,633.69,632.63,1.57613724]
[1771686793459,1.17847449,633.7,632.62,1.57613724]
[1771686794163,1.17847449,633.69,632.63,1.57613724]
[1771686794664,1.17847449,633.69,632.62,1.57613724]
[1771686795160,1.17847449,633.68,632.62,1.57613724]
[1771686795360,1.17847449,633.65,632.59,1.57613724]
[1771686802864,1.17847449,633.65,632.48,2.32889858]
[1771686802865,1.17847449,633.66,632.61,1.57613724]
[1771686804164,1.17847449,633.66,632.62,1.57613724]
[1771686804765,1.17847449,633.64,632.6,1.57613724]
[1771686804965,1.17847449,633.59,632.55,1.57613724]
[1771686806171,1.17847449,633.59,632.56,1.57613724]
[1771686806466,1.17847449,633.59,632.45,4.08689858]
[1771686806467,1.17847449,633.64,632.62,1.57613724]
[1771686806664,1.17847449,633.64,632.5,2.32889858]
[1771686806665,1.17847449,633.65,632.63,1.57613724]
[1771686806879,1.17847449,633.67,632.65,1.57613724]
[1771686807479,1.17847449,633.68,632.66,1.57613724]
[1771686807875,1.17847449,633.72,632.7,1.57613724]
[1771686808279,1.17847449,633.71,632.7,1.57613724]
[1771686810380,1.17847449,633.71,632.71,1.57613724]
[1771686811282,1.17847449,633.7,632.71,1.57613724]
[1771686812280,1.17847449,633.7,632.72,1.57613724]
[1771686813180,1.17847449,633.69,632.73,1.57613724]
[1771686814281,1.17847449,633.68,632.73,1.57613724]
[1771686814480,1.17847449,633.68,632.74,1.322]
[1771686815185,1.17847449,633.68,632.74,2.89813724]
[1771686816092,1.17847449,633.67,632.74,2.89813724]
[1771686816389,1.17847449,633.67,632.75,1.57613724]
[1771686817291,1.17847449,633.66,632.75,1.57613724]
[1771686818193,1.17847449,633.66,632.76,1.57613724]
[1771686819295,1.17847449,633.65,632.77,1.57613724]
[1771686820297,0.27477625,634.03,632.78,1.57613724]
[1771686820298,1.17847449,633.64,632.78,1.57613724]
[1771686820793,1.17847449,633.64,632.74,1.322]
[1771686820794,1.17847449,633.63,632.77,1.57613724]
[1771686821197,1.17847449,633.62,632.78,1.57613724]
[1771686821496,1.17847449,633.62,632.79,1.57613724]
[1771686821692,0.27477625,634.03,632.74,1.322]
[1771686821693,1.17847449,633.76,632.92,1.57613724]
[1771686822394,1.17847449,633.75,632.93,1.57613724]
[1771686823094,1.17847449,633.74,632.92,1.57613724]
[1771686823294,1.17847449,633.72,632.94,1.57613724]
[1771686823693,1.17847449,633.71,632.92,1.57613724]
[1771686824097,1.17847449,633.7,632.93,1.57613724]
[1771686824897,1.17847449,633.7,632.82,2.32889858]
[1771686824898,1.17847449,633.67,632.9,1.57613724]
[1771686825498,2.3538975,633.01,632.74,1.322]
[1771686825795,1.5728712,632.85,632.74,1.322]
[1771686826200,2.34898977,632.83,632.21,0.27493581]
[1771686826401,1.17448544,632.56,632.21,0.27493581]
[1771686826702,1.03956781,632.55,632.21,0.27493581]
[1771686826899,1.03956781,632.54,632.21,0.27493581]
[1771686827101,1.03956781,632.53,632.21,0.27493581]
[1771686827301,1.03956781,632.52,632.21,0.27493581]
[1771686827601,1.03956781,632.51,630.86,3.90646633]
[1771686827899,1.03956781,632.5,632.08,0.27529359]
[1771686828099,1.03956781,632.49,630.86,3.90646633]
[1771686828302,1.03956781,632.48,630.83,3.90646633]
[1771686828499,1.03956781,632.47,632.08,0.27531319]
[1771686828704,1.03956781,632.47,630.63,5.46905287]
[1771686828705,1.03956781,632.46,630.75,3.90646633]
[1771686828905,1.03956781,632.45,632.08,0.27531972]
[1771686829104,1.03956781,632.44,632.08,0.27531972]
[1771686829305,1.03956781,632.43,630.69,3.90646633]
[1771686829607,1.03956781,632.42,632.08,0.2753317]
[1771686829901,1.03956781,632.41,631.82,1.537]
[1771686830104,1.17448544,632.61,632.06,0.27522174]
[1771686830300,1.01186006,632.6,631.82,1.537]
[1771686830504,2.1863455,632.6,632.03,0.27520759]
[1771686830705,1.01186006,632.59,632.03,0.27520759]
[1771686830900,1.17448544,632.6,632.03,0.27520759]
[1771686830901,1.01186006,632.58,632.03,0.27520759]
[1771686831105,1.01186006,632.57,632.03,0.27520759]
[1771686831306,1.01186006,632.56,632.03,0.27520759]
[1771686831504,1.01186006,632.55,632.03,0.27520759]
[1771686831702,1.01186006,632.54,632.03,0.27520759]
[1771686831901,1.01186006,632.53,632.03,0.27520759]
[1771686832102,1.01186006,632.52,632.03,0.27520759]
[1771686832303,1.01186006,632.51,632.03,0.27520759]
[1771686832607,1.01186006,632.5,632.03,0.27520759]
[1771686832805,1.01186006,632.49,632.03,0.27520759]
[1771686833007,1.01186006,632.48,632.03,0.27520759]
[1771686833205,1.17448544,632.68,632.03,0.27520759]
[1771686833409,1.00907206,632.67,632.03,0.27520759]
[1771686833709,1.00907206,632.66,632.03,0.27520759]
[1771686834006,1.00907206,632.65,632.03,0.27520759]
[1771686834209,1.00907206,632.64,632.03,0.27520759]
[1771686834407,1.00907206,632.63,632.03,0.27520759]
[1771686834609,1.17448544,632.71,632.03,0.27520759]
[1771686834610,1.00907206,632.62,632.03,0.27520759]
[1771686834810,1.00907206,632.61,632.03,0.27520759]
[1771686835005,1.00907206,632.6,632.03,0.27520759]
[1771686835311,1.00907206,632.59,632.03,0.27520759]
[1771686835606,3.9126045,633.39,632.03,0.27520759]
[1771686835607,1.00907206,632.58,632.03,0.27520759]
[1771686835808,1.00907206,632.57,632.03,0.27520759]
[1771686836105,1.00907206,632.56,632.03,0.27520759]
[1771686836306,1.00907206,632.55,632.03,0.27520759]
[1771686836512,1.00907206,632.54,631.82,1.537]
[1771686836810,1.00907206,632.53,631.96,0.27522936]
[1771686837007,1.00907206,632.52,631.96,0.27522936]
[1771686837306,1.17448544,632.72,631.96,0.27522936]
[1771686837610,1.00541044,632.71,631.96,0.27522936]
[1771686837810,1.00541044,632.7,631.96,0.27522936]
[1771686838010,1.00541044,632.69,631.96,0.27522936]
[1771686838211,1.00541044,632.68,631.96,0.27522936]
[1771686838411,1.00541044,632.67,631.96,0.27522936]
[1771686838613,1.00541044,632.66,631.96,0.27522936]
[1771686838810,1.00541044,632.65,631.96,0.27522936]
[1771686839010,1.00541044,632.64,631.96,0.27522936]
[1771686839208,1.00541044,632.63,631.96,0.27522936]
[1771686839412,1.00541044,632.62,631.96,0.27522936]
[1771686839616,1.00541044,632.61,631.96,0.27522936]
[1771686839914,1.00541044,632.6,631.96,0.27522936]
[1771686840113,1.00541044,632.59,631.96,0.27522936]
[1771686840313,1.00541044,632.58,631.82,1.537]
[1771686840508,1.00541044,632.57,631.87,0.2752446]
[1771686840713,1.00541044,632.56,631.87,0.2752446]
[1771686841012,1.00541044,632.55,631.87,0.2752446]
[1771686841213,3.9126045,633.35,631.87,0.2752446]
[1771686841214,1.00541044,632.54,631.87,0.2752446]
[1771686841513,1.00541044,632.53,631.87,0.2752446]
[1771686841712,1.00541044,632.52,631.87,0.2752446]
[1771686841909,1.00541044,632.51,631.87,0.2752446]
[1771686842111,1.00541044,632.5,631.87,0.2752446]
[1771686842414,3.9126045,633.36,631.82,1.537]
[1771686842415,1.00541044,632.49,631.82,1.537]
[1771686842615,1.00541044,632.48,631.82,1.537]
[1771686842811,1.00541044,632.47,631.82,1.537]
[1771686843111,1.00541044,632.46,631.82,1.537]
[1771686843314,1.00541044,632.45,631.82,1.537]
[1771686843610,1.00541044,632.44,631.82,1.537]
[1771686843814,1.00541044,632.43,631.82,1.537]
[1771686844015,1.00541044,632.42,631.82,1.537]
[1771686844216,1.00541044,632.41,631.82,1.537]
[1771686844518,1.00541044,632.4,631.82,1.537]
[1771686844814,1.00541044,632.39,631.82,1.537]
[1771686845015,1.15552233,632.59,631.82,1.537]
[1771686845315,1.0001259,632.58,631.82,1.537]
[1771686845515,1.0001259,632.57,631.82,1.537]
[1771686845716,1.0001259,632.56,631.82,1.537]
[1771686845915,1.0001259,632.55,631.82,1.537]
[1771686846116,1.0001259,632.54,631.82,1.537]
[1771686846416,1.0001259,632.53,631.82,1.537]
[1771686846712,1.0001259,632.52,631.82,1.537]
[1771686846915,1.15552233,632.61,631.82,1.537]
[1771686846916,1.0001259,632.51,631.82,1.537]
[1771686847110,1.0001259,632.5,631.82,1.537]
[1771686847313,1.0001259,632.49,631.82,1.537]
[1771686847512,1.0001259,632.48,631.82,1.537]
[1771686847816,1.0001259,632.47,631.82,1.537]
[1771686848012,1.0001259,632.46,631.82,1.537]
[1771686848215,1.0001259,632.45,631.82,1.537]
[1771686848414,1.15552233,632.63,631.82,1.537]
[1771686848415,1.0001259,632.44,631.82,1.537]
[1771686848613,1.0001259,632.43,631.82,1.537]
[1771686848812,1.15552233,632.63,631.82,1.537]
[1771686849017,0.99791902,632.62,631.82,1.537]
[1771686849213,0.99791902,632.61,631.82,1.537]
[1771686849418,2.34898977,632.86,631.82,1.537]
[1771686849419,0.99791902,632.6,631.82,1.537]
[1771686849617,0.99791902,632.59,631.82,1.537]
[1771686849918,0.99791902,632.58,631.82,1.537]
[1771686850113,0.99791902,632.57,631.82,1.537]
[1771686850316,0.99791902,632.56,631.82,1.537]
[1771686850614,0.99791902,632.55,631.82,1.537]
[1771686850818,0.99791902,632.54,631.82,1.537]
[1771686851013,0.99791902,632.53,631.82,1.537]
[1771686851216,0.99791902,632.52,631.82,1.537]
[1771686851415,1.15552233,632.72,631.82,1.537]
[1771686851619,0.99732746,632.71,631.82,1.537]
[1771686851914,0.99732746,632.7,631.82,1.537]
[1771686852118,0.99732746,632.69,631.82,1.537]
[1771686852419,0.99732746,632.68,631.82,1.537]
[1771686852620,0.99732746,632.67,631.82,1.537]
[1771686852914,0.99732746,632.66,631.82,1.537]
[1771686853114,0.99732746,632.65,631.82,1.537]
[1771686853416,0.99732746,632.64,631.82,1.537]
[1771686853615,0.99732746,632.63,631.82,1.537]
[1771686853917,0.99732746,632.62,631.82,1.537]
[1771686854116,0.99732746,632.61,631.82,1.537]
[1771686854316,0.99732746,632.6,631.82,1.537]
[1771686854515,0.99732746,632.59,631.82,1.537]
[1771686854715,0.99732746,632.58,631.82,1.537]
[1771686855016,0.99732746,632.57,631.82,1.537]
[1771686855214,1.15552233,632.71,631.82,1.537]
[1771686855215,0.99732746,632.56,631.82,1.537]
[1771686855418,0.99732746,632.55,631.82,1.537]
[1771686855617,0.99732746,632.54,631.82,1.537]
[1771686855816,0.99732746,632.53,631.82,1.537]
[1771686856019,0.99732746,632.52,631.82,1.537]
[1771686856220,0.99732746,632.51,631.82,1.537]
[1771686856416,0.99732746,632.5,631.82,1.537]
[1771686856620,0.99732746,632.49,631.82,1.537]
[1771686856920,1.15552233,632.7,631.82,1.537]
[1771686857120,0.9983272,632.69,631.82,1.537]
[1771686857319,2.15384953,632.69,631.82,1.537]
[1771686857517,0.9983272,632.68,631.82,1.537]
[1771686858316,1.15552233,632.67,631.82,1.537]
[1771686858616,0.9983272,632.66,631.82,1.537]
[1771686859215,2.15384953,632.66,631.82,1.537]
[1771686859415,0.9983272,632.65,631.82,1.537]
[1771686860316,1.15552233,632.64,631.82,1.537]
[1771686860517,0.9983272,632.63,631.82,1.537]
[1771686861417,1.15552233,632.62,631.82,1.537]
[1771686861617,0.9983272,632.61,631.82,1.537]
[1771686862217,1.15552233,632.59,631.82,1.537]
[1771686862519,0.9983272,632.58,631.82,1.537]
[1771686862817,0.9983272,632.57,631.82,1.537]
[1771686863017,0.9983272,632.56,631.82,1.537]
[1771686863220,1.15552233,632.56,631.82,1.537]
[1771686863419,2.15384953,632.55,631.82,1.537]
[1771686863621,0.9983272,632.54,631.82,1.537]
[1771686863817,0.9983272,632.53,631.82,1.537]
[1771686864118,0.9983272,632.52,631.82,1.537]
[1771686864321,1.15552233,632.52,631.82,1.537]
[1771686864517,0.9983272,632.51,631.82,1.537]
[1771686864722,0.9983272,632.5,631.82,1.537]
[1771686865019,0.9983272,632.49,631.82,1.537]
[1771686865223,0.9983272,632.48,631.82,1.537]
[1771686865519,0.9983272,632.47,631.82,1.537]
[1771686865719,0.9983272,632.46,631.82,1.537]
[1771686865918,0.9983272,632.45,631.82,1.537]
[1771686866119,0.9983272,632.44,631.82,1.537]
[1771686866324,0.9983272,632.43,631.82,1.537]
[1771686866622,1.15552233,632.45,631.82,1.537]
[1771686866623,0.9983272,632.42,631.82,1.537]
[1771686866820,0.9983272,632.41,631.82,1.537]
[1771686867020,0.9983272,632.4,631.82,1.537]
[1771686867222,2.15384953,632.39,631.82,1.537]
[1771686867522,0.9983272,632.38,631.82,1.537]
[1771686867720,0.9983272,632.37,631.82,1.537]
[1771686867921,0.9983272,632.36,631.82,1.537]
[1771686868224,1.15552233,632.32,631.82,1.537]
[1771686868825,2.15384953,632.32,631.82,1.537]
[1771686869025,0.9983272,632.31,631.82,1.537]
[1771686869222,1.15552233,632.23,631.82,1.537]
[1771686870429,1.15552233,632.11,631.82,1.537]
[1771686870635,0.9983272,632.1,631.82,1.537]
[1771686870832,0.9983272,632.09,631.82,1.537]
[1771686871129,0.9983272,632.08,631.82,1.537]
[1771686871328,0.9983272,632.07,631.82,1.537]
[1771686871529,0.9983272,632.06,631.82,1.537]
[1771686871732,0.9983272,632.05,631.82,1.537]
[1771686871929,0.9983272,632.04,631.82,1.537]
[1771686872233,0.9983272,632.03,631.82,1.537]
[1771686872432,0.9983272,632.02,631.82,1.537]
[1771686872729,0.9983272,632.01,631.82,1.537]
[1771686872927,0.9983272,632.0,631.82,1.537]
[1771686873132,0.9983272,631.99,631.82,1.537]
[1771686873332,0.9983272,631.98,631.82,1.537]
[1771686873633,0.9983272,631.97,631.82,1.537]
[1771686873832,0.9983272,631.96,631.82,1.537]
[1771686874029,0.9983272,631.95,631.82,1.537]
[1771686874232,0.9983272,631.94,631.82,1.537]
[1771686874431,0.9983272,631.93,631.82,1.537]
[1771686874630,0.9983272,631.92,631.82,1.537]
[1771686874932,0.9983272,631.91,631.82,1.537]
[1771686875127,0.9983272,631.9,631.82,1.537]
[1771686875328,0.9983272,631.89,631.82,1.537]
[1771686875534,0.9983272,631.88,631.82,1.537]
[1771686875731,0.9983272,631.87,631.82,1.537]
[1771686875930,1.15552233,632.07,631.82,1.537]
[1771686876132,1.00893832,632.06,631.82,1.537]
[1771686876328,1.15552233,632.0,631.82,1.537]
[1771686876531,1.00893832,631.99,631.82,1.537]
[1771686876732,1.00893832,631.98,631.82,1.537]
[1771686876929,1.00893832,631.97,631.82,1.537]
[1771686877133,1.00893832,631.96,631.68,0.27529576]
[1771686877334,1.00893832,631.95,631.68,0.27529576]
[1771686877531,1.00893832,631.94,631.68,0.27529576]
[1771686877834,1.00893832,631.93,631.68,0.27529576]
[1771686878130,1.00893832,631.92,631.68,0.27529576]
[1771686878330,1.00893832,631.91,631.68,0.27529576]
[1771686878630,1.00893832,631.9,631.68,0.27529576]
[1771686878933,1.00893832,631.89,631.68,0.27529576]
[1771686879132,1.00893832,631.88,631.68,0.27529576]
[1771686879330,1.00893832,631.87,631.68,0.27529576]
[1771686879534,1.00893832,631.86,631.68,0.27529576]
[1771686879833,1.00893832,631.85,631.68,0.27529576]
[1771686880134,1.00893832,631.84,631.68,0.27529576]
[1771686880333,1.00893832,631.83,631.68,0.27529576]
[1771686880531,1.00893832,631.82,631.68,0.27529576]
[1771686880731,1.00893832,631.81,631.68,0.27529576]
[1771686880931,1.00893832,631.8,631.68,0.27529576]
[1771686881133,1.00893832,631.79,631.68,0.27529576]
[1771686881331,1.00893832,631.78,631.68,0.27529576]
[1771686881534,1.00893832,631.77,631.68,0.27529576]
[1771686881733,1.00893832,631.76,631.68,0.27529576]
[1771686881938,1.00893832,631.75,631.68,0.27529576]
[1771686882136,0.98729785,631.74,631.21,1.585]
[1771686882333,1.15552233,631.95,631.21,1.585]
[1771686882534,0.98720622,631.94,631.6,0.27545484]
[1771686882835,0.98720622,631.93,631.21,1.585]
[1771686883038,0.98720622,631.92,631.6,0.27543413]
[1771686883238,0.98720622,631.91,631.21,1.585]
[1771686883435,0.98720622,631.9,631.21,1.585]
[1771686883636,0.98720622,631.89,631.56,0.27544503]
[1771686883834,2.14272855,631.88,631.21,1.585]
[1771686884035,1.15552233,631.22,630.94,0.27558245]
[1771686884238,0.98720622,631.21,630.94,0.27558245]
[1771686884437,0.98720622,631.2,630.94,0.27558245]
[1771686884636,0.98720622,631.19,630.94,0.27558245]
[1771686884939,0.98720622,631.18,630.94,0.27558245]
[1771686885140,1.15552233,631.4,630.94,0.27558245]
[1771686885340,5.51046807,632.28,630.94,0.27558245]
[1771686885341,0.96343971,631.39,630.94,0.27558245]
[1771686885536,0.96343971,631.38,630.94,0.27558245]
[1771686885736,0.96343971,631.37,630.94,0.27558245]
[1771686885941,1.15552233,631.57,630.94,0.27558245]
[1771686886341,0.94176964,631.56,630.94,0.27558245]
[1771686886542,0.94176964,631.55,630.94,0.27558245]
[1771686886842,0.94176964,631.54,630.94,0.27558245]
[1771686887040,0.94176964,631.53,630.94,0.27558245]
[1771686887245,0.94176964,631.52,630.94,0.27558245]
[1771686887447,0.94176964,631.51,630.94,0.27558245]
[1771686887645,0.94176964,631.5,630.94,0.27558245]
[1771686887842,0.94176964,631.49,630.94,0.27558245]
[1771686888147,0.94176964,631.48,630.9,1.693]
[1771686888344,0.94176964,631.47,630.9,1.693]
[1771686888546,0.94176964,631.46,630.9,1.693]
[1771686888844,0.94176964,631.45,630.9,1.693]
[1771686889045,0.94176964,631.44,630.9,1.693]
[1771686889246,0.94176964,631.43,630.9,1.693]
[1771686889445,0.94176964,631.42,630.9,1.693]
[1771686889645,0.94176964,631.41,630.9,1.693]
[1771686889845,0.94176964,631.4,630.9,1.693]